[Event "1st Serbian League 2022"]
[Site "Vrnjacka Banja"]
[Date "2022.09.24"]
[Round "5.26"]
[White "Sedlak, Nikola"]
[Black "Djokic, Mihailo"]
[Result "1-0"]
[ECO "A49"]
[WhiteElo "2466"]
[BlackElo "2197"]
[Annotator "TA"]
[PlyCount "119"]
[EventDate "2022.09.20"]
[EventType "team-tourn"]
[EventCountry "SRB"]
[SourceTitle "playchess.com"]
[Source "ChessBase"]
[SourceQuality "1"]
[TimeControl "40/5400+30:1800+30"]

{[%evp 11,119,14,11,12,43,47,32,37,50,39,48,35,115,118,99,97,108,114,97,100,135,108,168,105,112,92,118,122,127,100,96,95,123,121,164,134,160,76,70,64,61,39,72,48,80,60,67,17,43,40,44,43,43,8,17,20,415,401,608,604,576,569,724,715,824,814,782,630,587,562,787,781,762,738,750,706,558,237,902,899,904,899,895,884,877,877,862,777,631,652,892,804,29975,29976,29976,29977,29977,29976,29976,29977,29978,29979,29979,29980,29980,29981,29984,29983,29983,29984]} 1. Nf3 {[%emt 0:00:28]} Nf6 {[%emt 0:00:04]} 2. g3 {[%emt 0:00:28]} g6 {[%emt 0:00:06]} 3. Bg2 {[%emt 0:00:08]} Bg7 {[%emt 0:00:04]} 4. O-O {[%emt 0:00:09]} O-O {[%emt 0:00:05]} 5. d4 {[%emt 0:00:10]} d6 {[%emt 0:00:03]} 6. a4 {[%emt 0:00:30]} a5 {[%emt 0:02:51]} 7. Re1 {[%emt 0:00:53] A49: 1 d4 Nf6 2 Nf3 g6 3 g3: Anti-King's Indian systems.} c6 {[%emt 0:00:50]} 8. e4 {[%emt 0:00:57]} Qc7 {[%emt 0:01:53] [#]} 9. Na3 $146 {[%emt 0:06:30] White is slightly better.} ({Predecessor:} 9. Nc3 e5 10. Be3 Na6 11. h3 Nb4 12. Qc1 Rd8 13. Bg5 Be6 14. Rd1 Bc4 15. b3 {1-0 (38) Arabidze,M (2436)-Kim,S (2295) Chess.com INT 2022}) 9... e5 {[%emt 0:08:05]} 10. dxe5 {[%emt 0:01:30]} dxe5 {[%emt 1:21:29]} 11. Nc4 {[%emt 0:00:08]} Bg4 {[%emt 0:00:00]} (11... Rd8 $14 12. Qe2 Bg4) 12. Ncxe5 $16 {[%emt 0:02:59]} Rd8 {[%emt 0:00:00]} 13. Nd3 {[%emt 0:00:33]} Na6 {[%emt 0:00:00]} 14. h3 {[%emt 0:02:35]} Be6 {[%emt 0:00:00]} 15. Bf4 {[%emt 0:01:40][%cal Bc1f4,Bf4e5,Be5c3][%mdl 32]} Qb6 {[%emt 0:00:00]} 16. Qc1 {[%emt 0:01:49]} Nb4 {[%emt 0:00:00]} (16... Nd7 $16 {is a better defense.}) 17. Nxb4 {[%emt 0:00:51]} (17. Be3 $18 Qc7 18. Nc5) 17... axb4 {[%emt 0:00:00]} 18. Be5 {[%emt 0:01:11]} b3 {[%emt 0:00:00]} 19. cxb3 {[%emt 0:03:53]} Rd3 {[%emt 0:00:00] Inhibits Qc3.} 20. b4 {[%emt 0:15:16]} Qxb4 {[%emt 0:00:00]} 21. Bc3 {[%emt 0:03:35]} Qb6 {[%emt 0:00:00][%cal Oe6h3]} 22. a5 {[%emt 0:01:00]} Qa7 {[%emt 0:00:00][%cal Oe6h3]} 23. g4 {[%emt 0:12:13]} h5 {[%emt 0:00:00]} 24. Ne5 {[%emt 0:03:33]} ({White should try} 24. Bxf6 Bxf6 25. gxh5 gxh5 26. e5 (26. Qh6 Bxb2 27. Rab1 Bg7 $11)) 24... Rxc3 {[%emt 0:00:00]} 25. bxc3 {[%emt 0:00:08][%cal Oa5a6]} ({Inferior is} 25. Qxc3 Nd7 26. gxh5 Nxe5 27. hxg6 Nxg6 $17) 25... hxg4 {[%emt 0:00:00]} 26. hxg4 {[%emt 0:00:18][%cal Oa5a6,Bh3g4,Bg4h5][%mdl 32] aiming for a6!} Qc5 {[%emt 0:00:00]} 27. Qf4 {[%emt 0:09:20]} (27. Nd3 $5 {[%cal Rd3c5]} Qd6 28. Rd1 Nxg4 29. Qf4 $14) 27... Nh5 {[%emt 0:00:00]} 28. gxh5 {[%emt 0:00:56]} Bxe5 {[%emt 0:00:00]} 29. Qh4 {[%emt 0:03:16]} (29. Qh6 $14 Bg7 30. Qe3 Qxc3 31. e5 Qxe3 32. Rxe3) 29... Bxc3 {[%emt 0:00:00] [#] ...Qe5 is the strong threat.} 30. hxg6 {[%emt 0:00:36]} Qe5 $1 {[%emt 0:00:00]} 31. Qh7+ {[%emt 0:05:18]} Kf8 {[%emt 0:00:00]} 32. gxf7 {[%emt 0:04:52]} Bxf7 {[%emt 0:00:00] A strong pair of Bishops.} 33. Qh6+ {[%emt 0:01:10]} Kg8 $2 {[%emt 0:00:00][%mdl 8192] Black cannot hold the game after this.} (33... Ke8 $11 {and Black is okay.} 34. Rad1 Bxe1 35. Rxe1 Rxa5) 34. Ra3 $18 {[%emt 0:03:26] [#] Hoping for Re3.} Bxe1 {[%emt 0:00:00]} (34... Rxa5 $142 35. Rxa5 Qxa5) 35. Rg3+ $1 {[%emt 0:00:18]} Qxg3 {[%emt 0:00:00]} 36. fxg3 {[%emt 0:00:05]} Rxa5 {[%emt 0:00:00]} 37. Qf6 {[%emt 0:05:06]} Bb4 {[%emt 0:00:00]} 38. Qd8+ {[%emt 0:00:30]} Kh7 {[%emt 0:00:00]} 39. Qc7 {[%emt 0:01:32]} Kg8 {[%emt 0:00:00]} 40. Qxb7 {[%emt 0:00:26]} Bd6 {[%emt 0:00:00]} 41. Qxc6 {[%emt 0:31:32]} Be5 {[%emt 0:29:45]} 42. Qc8+ {[%emt 0:00:19]} Kg7 {[%emt 0:00:37]} 43. Kh2 {[%emt 0:00:46]} Bf6 {[%emt 0:04:24]} 44. Bf3 {[%emt 0:02:39]} (44. Bh3 $142 Re5 45. Bf5) 44... Ra2+ $2 {[%emt 0:01:56]} (44... Re5 45. Qg4+ Bg6) 45. Kh3 {[%emt 0:00:28]} Ra5 {[%emt 0:00:19]} 46. Bg4 {[%emt 0:01:24]} Re5 {[%emt 0:02:27]} 47. Bf5 {[%emt 0:00:26]} Re8 {[%emt 0:00:06]} 48. Qc7 {[%emt 0:01:14]} Be5 {[%emt 0:09:26]} 49. Qc1 {[%emt 0:00:36]} Rh8+ {[%emt 0:00:00]} 50. Kg2 {[%emt 0:00:52]} Bf6 {[%emt 0:00:00] Prevents Qg5+.} 51. g4 {[%emt 0:01:48][%cal Bg3g4,Bg4g5][%mdl 32] g5 would kill now.} Rb8 {[%emt 0:00:00]} 52. g5 {[%emt 0:03:39] White mates.} Be5 {[%emt 0:00:00]} 53. Qc5 {[%emt 0:00:00]} Rb2+ {[%emt 0:00:00]} 54. Kf1 {[%emt 0:00:00]} Rb1+ {[%emt 0:00:00]} 55. Ke2 {[%emt 0:00:00]} Bh5+ {[%emt 0:00:00]} 56. Kd3 {[%emt 0:00:00]} Rb3+ {[%emt 0:00:00]} 57. Kd2 {[%emt 0:00:00]} Bf4+ {[%emt 0:00:00]} 58. Kc2 {[%emt 0:00:00]} Rb7 {[%emt 0:00:00]} 59. Qc3+ {[%emt 0:00:00]} Kf7 {[%emt 0:00:00]} 60. g6+ {[%emt 0:00:00] Weighted Error Value: White=0.30/Black=0.46} 1-0

[Event "1st Serbian League 2022"]
[Site "Vrnjacka Banja"]
[Date "2022.09.24"]
[Round "5.27"]
[White "Jocev, Milan"]
[Black "Popovic, Dusan"]
[Result "0-1"]
[ECO "E62"]
[WhiteElo "2283"]
[BlackElo "2486"]
[Annotator "TA"]
[PlyCount "80"]
[EventDate "2022.09.20"]
[EventType "team-tourn"]
[EventCountry "SRB"]
[SourceTitle "playchess.com"]
[Source "ChessBase"]
[SourceQuality "1"]
[TimeControl "40/5400+30:1800+30"]

{[%evp 22,80,36,20,18,6,10,9,8,-9,0,-9,0,-8,0,-10,0,-26,-6,-50,16,11,20,10,19,16,18,19,15,15,13,0,0,0,0,0,0,0,0,0,0,0,0,0,0,-61,-61,-61,-61,-67,-67,-213,-208,-787,-770,-753,-771,-635,-687,-592,-537]} 1. d4 {[%emt 0:00:03]} Nf6 {[%emt 0:00:09]} 2. c4 {[%emt 0:00:15]} g6 {[%emt 0:00:16]} 3. g3 {[%emt 0:00:13]} Bg7 {[%emt 0:00:24]} 4. Bg2 {[%emt 0:00:19]} O-O {[%emt 0:00:41]} 5. Nf3 {[%emt 0:00:32]} d6 {[%emt 0:00:25]} 6. Nc3 {[%emt 0:00:15]} c6 {[%emt 0:00:24]} 7. O-O {[%emt 0:01:03]} Bf5 {[%emt 0:00:06]} 8. b3 {[%emt 0:05:02]} Ne4 {[%emt 0:01:32]} 9. Bb2 {[%emt 0:01:48]} Nxc3 {[%emt 0:00:31]} 10. Bxc3 {[%emt 0:00:06]} Be4 {[%emt 0:00:04]} 11. Qd2 {[%emt 0:02:20]} Nd7 $1 {[%emt 0:02:07][%cal Bb8d7,Bd7f6,Bf6e4][%mdl 32] 11...Nd7 is better than 11...d5.} 12. Rac1 {[%emt 0:02:53]} e6 {[%emt 0:02:21] E62: King's Indian: Fianchetto: 6...c6 and Panno Variation (6...Nc6) without ...a6.} 13. Qf4 {[%emt 0:06:59]} d5 {[%emt 0:03:34]} 14. Rfd1 {[%emt 0:05:18]} a5 {[%emt 0:06:17] [#] The position is equal.} 15. h4 $146 {[%emt 0:05:56]} ({Predecessor:} 15. a4 Bxf3 16. Bxf3 f5 17. Qd6 Re8 18. Bg2 Bf8 19. Qf4 Nf6 20. Rb1 Bd6 21. Qd2 {1-0 (38) Baramidze,D (2610)-Gallagher,J (2472) Ruzomberok 2014}) 15... Nf6 {[%emt 0:15:42]} 16. Ne5 {[%emt 0:18:17] [#] Black must now prevent f3.} Bxg2 {[%emt 0:03:18]} 17. Kxg2 {[%emt 0:00:09]} Ne4 {[%emt 0:02:08]} 18. Be1 {[%emt 0:10:53]} Qe7 {[%emt 0:07:22]} 19. Qf3 {[%emt 0:11:02]} f5 {[%emt 0:52:39][%cal Of5f4]} 20. e3 {[%emt 0:02:25]} a4 {[%emt 0:00:00]} (20... Bxe5 $15 21. dxe5 Qg7) 21. Qe2 $11 {[%emt 0:02:44]} axb3 {[%emt 0:00:00]} 22. axb3 {[%emt 0:00:06]} Ra6 {[%emt 0:00:00]} 23. f3 {[%emt 0:03:36]} Nf6 {[%emt 0:00:00]} ({Not} 23... Bxe5 24. dxe5 Nc5 25. Bb4 $16) 24. Ra1 {[%emt 0:01:01] Strongly threatening Rxa6.} Rfa8 {[%emt 0:00:00]} 25. Qb2 {[%emt 0:00:45]} Qe8 {[%emt 0:00:00]} 26. Bc3 {[%emt 0:03:00]} Bf8 {[%emt 0:00:00]} 27. Rxa6 {[%emt 0:01:04]} Rxa6 {[%emt 0:00:00]} 28. Ra1 {[%emt 0:00:11]} Qa8 {[%emt 0:00:00]} 29. Rxa6 {[%emt 0:01:22]} Qxa6 {[%emt 0:00:00]} 30. Qa1 Qxa1 {[%emt 0:00:00]} 31. Bxa1 {[%emt 0:01:00][%mdl 4096] Endgame KBN-KBN} Bd6 {[%emt 0:00:00]} 32. Nd3 {[%emt 0:00:30]} Nh5 {[%emt 0:00:00]} 33. cxd5 {[%emt 0:00:30]} ({White should play} 33. Ne5 $11) 33... exd5 $15 {[%emt 0:00:00]} 34. f4 {[%emt 0:00:30]} Nf6 {[%emt 0:00:11] Black is more active.} 35. Nf2 {[%emt 0:00:30]} Kf7 {[%emt 0:00:30]} 36. Kf3 {[%emt 0:00:30] Against Ng4. Loses the game.} (36. Bc3 $15) 36... Ne4 $19 {[%emt 0:00:30]} 37. Nxe4 $2 {[%emt 0:00:30] [#]} (37. Nd3) 37... fxe4+ {[%emt 0:00:30] Black is clearly winning.} ({Weaker is} 37... dxe4+ 38. Ke2 $15) 38. Kf2 {[%emt 0:00:30]} Bb4 {[%emt 0:00:30]} 39. g4 {[%emt 0:00:30]} h5 {[%emt 0:00:30]} 40. gxh5 {[%emt 0:00:30]} gxh5 {[%emt 0:00:30] Weighted Error Value: White=0.38/Black=0.06 (flawless)} 0-1

[Event "1st Serbian League 2022"]
[Site "Vrnjacka Banja"]
[Date "2022.09.24"]
[Round "5.28"]
[White "Boskovic, Drasko"]
[Black "Stankovic, Boris"]
[Result "1-0"]
[ECO "B30"]
[WhiteElo "2415"]
[BlackElo "2208"]
[Annotator "TA"]
[PlyCount "105"]
[EventDate "2022.09.20"]
[EventType "team-tourn"]
[EventCountry "SRB"]
[SourceTitle "playchess.com"]
[Source "ChessBase"]
[SourceQuality "1"]
[TimeControl "40/5400+30:1800+30"]

{[%evp 12,105,14,-9,35,36,61,61,65,62,68,64,70,73,66,71,101,81,110,107,142,128,196,195,228,225,220,219,225,212,220,190,214,168,168,168,168,168,168,168,210,209,202,202,193,191,216,210,210,209,216,191,219,228,235,239,340,359,345,332,344,236,229,220,214,171,175,166,163,157,209,180,256,219,222,201,345,322,1131,1087,1023,987,4948,5143,5390,4962,2079,1804,29975,29976,29984,29985,29985,29986,29986,1468]} 1. e4 {[%emt 0:00:06]} c5 {[%emt 0:02:52]} 2. Nf3 {[%emt 0:00:03]} Nc6 {[%emt 0:00:07]} 3. Bb5 {[%emt 0:00:27]} e6 {[%emt 0:00:05]} 4. O-O {[%emt 0:00:20]} Nge7 {[%emt 0:00:05]} 5. Re1 {[%emt 0:00:55]} a6 {[%emt 0:00:28]} 6. Bf1 {[%emt 0:00:40]} d5 {[%emt 0:00:29]} 7. d3 {[%emt 0:00:21]} dxe4 {[%emt 0:16:27] B30: Sicilian: 2...Nc6 3 Bb5, lines without ...g6.} 8. dxe4 {[%emt 0:00:29] [#]} Ng6 $146 {[%emt 0:00:44]} ({Predecessor:} 8... Qxd1 9. Rxd1 e5 10. c3 Bg4 11. Be3 Ng6 12. Nbd2 f6 13. Bc4 O-O-O 14. h3 Bd7 15. Nb3 {1-0 (40) Amin,B (2690)-Maghsoodloo,P (2676) Europe Echecs INT 2020}) 9. Qxd8+ $1 {[%emt 0:01:23]} Kxd8 {[%emt 0:12:11] White is slightly better.} 10. a4 {[%emt 0:00:07] White is more active.} Be7 {[%emt 0:03:38]} 11. Na3 {[%emt 0:00:30]} Kc7 {[%emt 0:03:43]} 12. Nc4 {[%emt 0:03:35]} Rd8 {[%emt 0:05:09]} 13. a5 {[%emt 0:16:44]} Bd7 {[%emt 0:08:11]} 14. h4 {[%emt 0:04:10] Threatens to win with h5.} h5 {[%emt 0:02:31]} 15. c3 {[%emt 0:02:37] Prevents Nb4.} Rab8 {[%emt 0:04:39]} 16. Be2 {[%emt 0:04:53]} e5 {[%emt 0:06:38]} (16... Rh8 $16 {might work better.} 17. Be3 Rbd8) 17. g3 $18 {[%emt 0:04:25]} Be6 {[%emt 0:01:31]} 18. Ng5 $1 {[%emt 0:01:04]} Rh8 {[%emt 0:05:24]} 19. Nxe6+ {[%emt 0:04:40]} fxe6 {[%emt 0:00:01]} 20. Be3 Nf8 {[%emt 0:04:35]} 21. Red1 {[%emt 0:00:49]} Nd7 {[%emt 0:00:37]} 22. Rd3 {[%emt 0:06:14]} Nf6 {[%emt 0:00:59]} 23. f3 Rbd8 {[%emt 0:01:15]} 24. Rxd8 Rxd8 {[%emt 0:01:24]} 25. Bf1 {[%emt 0:00:53]} Re8 {[%emt 0:01:29]} 26. Bh3 {[%emt 0:00:54]} Bf8 {[%emt 0:00:13]} 27. Kf2 {[%emt 0:47:41]} Nd7 {[%emt 0:01:03]} 28. Ke2 {[%emt 0:00:00]} b5 {[%emt 0:05:19]} 29. axb6+ $1 {[%emt 0:00:00]} Nxb6 {[%emt 0:00:05]} 30. Nxb6 {[%emt 0:00:00]} Kxb6 {[%emt 0:00:01]} 31. b4 {[%emt 0:00:00][%cal Bb2b4,Bb4c5][%mdl 32]} a5 {[%emt 0:07:49] [#]} 32. bxc5+ {[%emt 0:00:00]} Kc7 {[%emt 0:01:16]} 33. Kd2 {[%emt 0:00:00]} g6 {[%emt 0:00:23]} (33... Be7 $142 34. Kd3 (34. Bxe6 Bxh4 35. gxh4 Rxe6 $16) 34... Rd8+ 35. Ke2 Re8) 34. Bf1 {[%emt 0:00:00]} Rb8 {[%emt 0:00:54]} 35. Kc2 {[%emt 0:00:00] Prevents Rb2+.} Be7 {[%emt 0:00:18]} 36. Bc4 {[%emt 0:00:00]} Rf8 {[%emt 0:00:11]} 37. Rf1 {[%emt 0:00:00]} (37. Bxe6 Rxf3 38. Kd2 Rxg3 $11) 37... Nd8 {[%emt 0:00:16]} 38. Bb3 {[%emt 0:00:00]} Nb7 {[%emt 0:01:04]} 39. Bxe6 {[%emt 0:00:00] aiming for Bh6.} Nxc5 {[%emt 0:00:28]} 40. Bd5 {[%emt 0:00:00]} a4 {[%emt 0:01:35]} (40... Nd7 $16 {is a better defense.} 41. Bb3 Bd6) 41. f4 {[%emt 0:00:00]} exf4 {[%emt 0:09:25]} (41... Bd6 {was worth a try.} 42. f5 gxf5) 42. Bxf4+ {[%emt 0:00:00] A strong pair of Bishops.} ({Don't do} 42. Rxf4 $6 Kd7 43. e5 Rxf4 44. gxf4 (44. Bxf4 Ne6 $16) 44... Ke8 $16) 42... Kd7 {[%emt 0:02:17][%cal Og6g5]} 43. Rd1 {[%emt 0:00:00]} Kc8 {[%emt 0:09:45]} (43... Bxh4 {keeps fighting.} 44. Bf7+ Kc8) 44. Rb1 {[%emt 0:00:00]} Bd6 $2 {[%emt 0:10:20]} (44... Nb3 45. Bc6 Bd6) 45. Bxd6 {[%emt 0:00:00]} Rf2+ {[%emt 0:00:03]} 46. Kc1 {[%emt 0:00:00]} Nd3+ {[%emt 0:00:37]} 47. Kd1 {[%emt 0:00:00] Be6+ would kill now.} Nb2+ {[%emt 0:00:21] [#]} 48. Rxb2 $1 {[%emt 0:00:00]} Rxb2 {[%emt 0:00:07]} 49. Kc1 {[%emt 0:00:00]} Rb5 {[%emt 0:02:02]} 50. c4 {[%emt 0:00:00][%cal Bc3c4,Bc4c5,Bc5c6][%mdl 32] White mates.} Rb3 {[%emt 0:01:42]} 51. c5 {[%emt 0:00:00]} Rf3 {[%emt 0:00:15]} 52. c6 {[%emt 0:00:00]} Kd8 {[%emt 0:00:37]} 53. Kb2 {[%emt 0:00:00] Black did not feel at home in the position after the opening.  Weighted Error Value: White=0.09 (flawless) /Black=0.41} (53. e5 $142 Rf1+ 54. Kd2 Rf2+ 55. Kd3 Rf1 56. c7+ Kd7 {[#]} 57. Be6+ $1 {[%mdl 512]} Kxe6 58. c8=Q+ Kf7 59. Qf8+ Ke6 60. Qxf1) 1-0

[Event "1st Serbian League 2022"]
[Site "Vrnjacka Banja"]
[Date "2022.09.24"]
[Round "5.29"]
[White "Velikic, Adela"]
[Black "Zegarac, Vuk"]
[Result "1-0"]
[ECO "B10"]
[WhiteElo "2272"]
[BlackElo "2336"]
[Annotator "TA"]
[PlyCount "113"]
[EventDate "2022.09.20"]
[EventType "team-tourn"]
[EventCountry "SRB"]
[SourceTitle "playchess.com"]
[Source "ChessBase"]
[SourceQuality "1"]
[TimeControl "40/5400+30:1800+30"]

{[%evp 9,113,0,0,1,10,-2,7,0,37,31,42,43,57,42,52,37,87,72,84,10,18,11,43,39,48,6,10,17,76,35,19,0,68,41,67,47,79,91,71,45,53,16,29,17,58,42,53,58,45,48,68,48,104,99,162,164,198,140,154,107,252,261,354,366,357,337,406,406,422,411,425,374,387,385,381,370,372,358,486,312,491,467,460,457,450,452,523,538,568,556,547,558,564,559,555,550,664,649,628,617,917,906,866,819,1232,786]} 1. e4 {[%emt 0:00:03]} c6 {[%emt 0:00:10]} 2. Nf3 {[%emt 0:00:09]} d5 {[%emt 0:00:06]} 3. d3 {[%emt 0:00:06]} dxe4 {[%emt 0:03:06]} 4. dxe4 {[%emt 0:00:05]} Qxd1+ {[%emt 0:00:09]} 5. Kxd1 {[%emt 0:00:05]} Nf6 {[%emt 0:00:44]} 6. Nfd2 {[%emt 0:00:15] B10: Caro-Kann: 2 d3 and 2 c4.} g5 {[%emt 0:00:44]} (6... Ng4 $5 {[%cal Rg4f2]} 7. Ke2 g6 $11) 7. a4 {[%emt 0:05:06]} Nbd7 {[%emt 0:05:44]} 8. Nc3 {[%emt 0:06:04] [#] The position is equal.} Ng4 $146 {[%emt 0:07:08]} ({Predecessor:} 8... h5 9. Nc4 Bh6 10. h4 g4 11. Bg5 Nc5 12. f3 Be6 13. Ne3 Bg7 14. Be2 a5 {0-1 (49) Vachier Lagrave,M (2838)-Dreev,A (2633) Riga 2021}) 9. Ke1 {[%emt 0:25:11]} Nge5 {[%emt 0:01:35]} 10. Nb3 {[%emt 0:03:09]} Rg8 {[%emt 0:00:52]} 11. a5 {[%emt 0:00:52]} e6 {[%emt 0:02:07]} 12. Be2 {[%emt 0:16:02]} Bd6 {[%emt 0:07:10]} (12... Nc5 $14) 13. Be3 {[%emt 0:03:39]} f5 {[%emt 0:06:20]} 14. f3 {[%emt 0:07:38]} (14. Rd1 $16 Bb4 15. exf5) 14... f4 $11 {[%emt 0:02:03]} 15. Bf2 {[%emt 0:03:10]} h5 {[%emt 0:03:20]} 16. h3 {[%emt 0:07:04]} Ke7 {[%emt 0:03:45]} 17. Na4 {[%emt 0:00:45]} Bc7 {[%emt 0:04:56]} 18. Nac5 {[%emt 0:01:24]} Nf6 {[%emt 0:02:14]} (18... Rd8 $11) 19. Nd4 {[%emt 0:11:13]} Bd6 {[%emt 0:03:00]} 20. Ndb3 {[%emt 0:03:19]} (20. Nd3 $11) 20... Bc7 $14 {[%emt 0:00:52]} 21. Kf1 {[%emt 0:01:23]} Rb8 {[%emt 0:04:28]} 22. Nd3 {[%emt 0:00:59]} (22. Bd4 {looks sharper.} h4 23. Kf2 Nh5 24. Nd3) 22... Ra8 {[%emt 0:02:00]} 23. Nxe5 {[%emt 0:00:51]} Bxe5 {[%emt 0:00:22]} 24. c3 {[%emt 0:00:21]} Bd6 {[%emt 0:03:35]} 25. Bc4 {[%emt 0:01:02]} Nd7 {[%emt 0:00:30] Against Nc5} 26. Nd4 {[%emt 0:01:02]} Rg6 {[%emt 0:08:54]} 27. a6 {[%emt 0:00:35]} Ne5 {[%emt 0:00:09]} 28. axb7 {[%emt 0:00:38]} Bxb7 {[%emt 0:00:07]} 29. Be2 {[%emt 0:00:41]} Rgg8 {[%emt 0:16:26]} 30. Nb3 {[%emt 0:00:28] White is more active.} a6 {[%emt 0:00:24]} ({Better is} 30... a5 $1 $14) 31. Nc5 $16 {[%emt 0:01:00]} Bxc5 {[%emt 0:01:37]} (31... Bc8 $16) 32. Bxc5+ $18 {[%emt 0:00:05]} Kf7 {[%emt 0:00:13]} 33. Kf2 {[%emt 0:01:11]} (33. Ra5 $18) 33... Rgd8 {[%emt 0:00:43]} 34. Rhd1 {[%emt 0:00:18] Against Rd2} (34. h4 $142) 34... Ke8 {[%emt 0:01:04] This costs Black the game.} (34... Rxd1 $16 35. Rxd1 a5) 35. Bd4 {[%emt 0:01:02] This bishop pair is nice.} Nd7 {[%emt 0:00:34]} 36. Ra5 {[%emt 0:00:14] Inhibits e5.} c5 {[%emt 0:02:01]} 37. Bxc5 {[%emt 0:00:21]} Ne5 {[%emt 0:00:08]} 38. Bd4 {[%emt 0:00:51]} Nf7 {[%emt 0:00:07]} 39. Rda1 {[%emt 0:00:49]} Rd6 {[%emt 0:00:19]} 40. Bc4 {[%emt 0:00:40]} Rad8 {[%emt 0:00:39]} 41. e5 {[%emt 0:06:10]} Rxd4 {[%emt 0:00:09]} 42. cxd4 {[%emt 0:00:09]} Rxd4 {[%emt 0:00:09]} 43. Bxa6 {[%emt 0:06:19]} Bd5 {[%emt 0:00:17]} 44. Re1 {[%emt 0:01:43] [#] Strongly threatening Bb5+.} g4 {[%emt 0:00:16]} (44... Kf8 $142 45. Rc5 Kg7) 45. hxg4 {[%emt 0:02:00] White is clearly winning.} hxg4 {[%emt 0:00:09]} 46. Bb5+ {[%emt 0:00:06]} Kf8 {[%emt 0:00:10]} 47. Ra4 {[%emt 0:00:26]} g3+ {[%emt 0:02:18]} 48. Kg1 {[%emt 0:01:43]} Rd2 {[%emt 0:00:12]} 49. Rxf4 {[%emt 0:02:45] [#] Threatens to win with Rc1.} Rxb2 {[%emt 0:00:08]} 50. Bd3 {[%emt 0:01:10]} Ke7 {[%emt 0:00:16]} 51. Rg4 {[%emt 0:01:29]} Rd2 {[%emt 0:00:08]} 52. Bf1 {[%emt 0:00:53]} Nh6 {[%emt 0:00:10]} 53. Rxg3 {[%emt 0:01:11]} Nf5 {[%emt 0:00:06]} 54. Rh3 {[%emt 0:00:16] Hoping for Rh7+.} Nd4 {[%emt 0:00:20]} 55. Rh7+ {[%emt 0:00:33]} Kf8 {[%emt 0:00:05]} 56. Rc1 {[%emt 0:02:32][%cal Rc1c8]} Kg8 {[%emt 0:00:08]} 57. Rd7 {[%emt 0:00:37] Weighted Error Value: White=0.15 (very precise) /Black=0.32} 1-0

[Event "1st Serbian League 2022"]
[Site "Vrnjacka Banja"]
[Date "2022.09.24"]
[Round "5.30"]
[White "Krstic, Petar"]
[Black "Radivojevic, Milan R"]
[Result "1-0"]
[ECO "B10"]
[WhiteElo "2290"]
[BlackElo "2172"]
[Annotator "TA"]
[PlyCount "61"]
[EventDate "2022.09.20"]
[EventType "team-tourn"]
[EventCountry "SRB"]
[SourceTitle "playchess.com"]
[Source "ChessBase"]
[SourceQuality "1"]
[TimeControl "40/5400+30:1800+30"]

{[%evp 9,61,1,2,5,2,11,9,7,20,6,5,12,12,10,7,0,27,25,32,27,36,9,40,43,58,46,47,41,39,32,41,33,36,35,66,62,77,71,82,85,108,107,111,111,163,162,178,191,203,189,182,184,674,648]} 1. e4 {[%emt 0:00:04]} c6 {[%emt 0:00:10]} 2. Nf3 {[%emt 0:00:06]} d5 {[%emt 0:00:07]} 3. exd5 {[%emt 0:00:06]} cxd5 {[%emt 0:00:04]} 4. Ne5 {[%emt 0:00:23]} Nc6 {[%emt 0:01:57]} 5. d4 {[%emt 0:00:14]} e6 {[%emt 0:02:29]} 6. Bb5 {[%emt 0:00:58] B10: Caro-Kann: 2 d3 and 2 c4.} Bd7 {[%emt 0:01:03]} 7. Nxd7 {[%emt 0:00:07]} Qxd7 {[%emt 0:00:09]} 8. c3 {[%emt 0:00:06] The position is equal.} Nf6 {[%emt 0:02:05]} 9. Nd2 {[%emt 0:02:21]} a6 {[%emt 0:00:27]} 10. Bd3 {[%emt 0:00:16][%cal Bb5d3,Bd3e2,Be2f3][%mdl 32]} Bd6 {[%emt 0:01:31]} 11. Nf3 {[%emt 0:01:26]} O-O {[%emt 0:07:18]} (11... Ne4 {feels hotter.} 12. Ng5 f5 13. O-O O-O) 12. O-O {[%emt 0:00:28]} Qc7 {[%emt 0:08:28]} 13. g3 {[%emt 0:00:27]} e5 {[%emt 0:05:00]} 14. dxe5 {[%emt 0:00:53]} Nxe5 {[%emt 0:00:03] [#]} 15. Be2 $146 {[%emt 0:00:48]} ({Predecessor:} 15. Re1 Rfe8 16. Bg5 Ned7 17. Rxe8+ Rxe8 18. Bf5 h6 19. Be3 Ne5 20. Nxe5 Bxe5 21. Qd3 {1-0 (64) Safarli,E (2598)-Kowalski,I (2322) Banja Vrujci 2021}) 15... Nxf3+ {[%emt 0:08:57]} 16. Bxf3 {[%emt 0:00:11]} Rad8 {[%emt 0:00:10]} 17. Be3 {[%emt 0:02:49]} Bc5 {[%emt 0:01:27]} 18. Qd3 {[%emt 0:06:20]} Bxe3 {[%emt 0:01:04]} 19. Qxe3 {[%emt 0:00:14]} Rfe8 {[%emt 0:01:58]} 20. Qd4 {[%emt 0:00:35]} Re5 {[%emt 0:07:13]} 21. Rfe1 {[%emt 0:02:35]} Rde8 {[%emt 0:01:00]} 22. Rxe5 {[%emt 0:00:10]} Rxe5 {[%emt 0:48:50]} 23. Rd1 {[%emt 0:01:39]} b5 {[%emt 0:00:30]} 24. a4 {[%emt 0:03:42]} h6 {[%emt 0:00:00]} 25. axb5 {[%emt 0:01:41]} axb5 {[%emt 0:00:00]} 26. Kg2 {[%emt 0:05:15]} Ne4 {[%emt 0:00:00]} (26... Re8 $16) 27. Ra1 $18 {[%emt 0:03:49][%cal Bd1a1,Ba1a8,Ba8d8,Bd8d5][%mdl 32]} Qc5 {[%emt 0:00:00]} 28. Ra8+ {[%emt 0:07:26]} ({Stronger than} 28. Qxe5 Qxf2+ 29. Kh1 (29. Kh3 $2 Qxf3 30. Qd4 Nf2+ 31. Qxf2 Qxf2 $19) 29... Qxf3+ 30. Kg1 Nf2 $17) 28... Kh7 {[%emt 0:00:00]} 29. Rd8 {[%emt 0:10:02]} Qxd4 {[%emt 0:00:00]} 30. cxd4 {[%emt 0:00:08]} Rf5 {[%emt 0:00:00] [#]} (30... Re6 31. Rxd5 Nd6) 31. Rxd5 $3 {[%emt 0:02:38][%mdl 512] Weighted Error Value: White=0.04 (flawless) /Black=0.40} 1-0